bitfinex-derivatives/quotes_ETHF0:USTF0_20241018
["timestamp","ask_amount","ask_price","bid_price","bid_amount"]
[1729293912375,1.92759129,2643.1,2643.0,1.73833]
[1729293914381,1.73833,2643.1,2643.0,1.73833]
[1729293914679,1.92758957,2643.1,2643.0,1.73833]
[1729293914979,3.41395908,2643.1,2643.0,1.73833]
[1729293916577,3.41396067,2643.1,2643.0,1.73833]
[1729293916779,3.22469947,2643.1,2643.0,1.73833]
[1729293916977,3.41395949,2643.1,2643.0,1.73833]
[1729293918180,3.41396144,2643.1,2643.0,1.73833]
[1729293918375,3.22469947,2643.1,2643.0,1.73833]
[1729293918575,3.41396341,2643.1,2643.0,1.73833]
[1729293918775,3.22469947,2643.1,2643.0,1.73833]
[1729293921983,3.41396275,2643.1,2643.0,1.73833]
[1729293923271,3.22469947,2643.1,2643.0,1.73833]
[1729293923974,3.41396269,2643.1,2643.0,1.73833]
[1729293924470,2.05396269,2643.1,2643.0,1.73833]
[1729293924675,2.05396269,2643.1,2642.8,0.781]
[1729293924676,0.37837,2642.9,2642.8,0.37835]
[1729293924869,0.37837,2642.9,2642.8,1.73835]
[1729293925677,0.79077,2642.9,2642.8,1.73835]
[1729293925882,0.4124,2642.9,2642.8,1.73835]
[1729293926275,2.15075,2642.9,2642.8,0.37835]
[1729293926476,3.82639443,2642.9,2642.8,0.37835]
[1729293926779,3.82675762,2642.9,2642.8,0.37835]
[1729293926988,0.37838,2642.8,2642.7,0.37837]
[1729293927285,2.26391266,2642.8,2642.7,1.73837]
[1729293929584,1.88553266,2642.8,2642.7,1.73837]
[1729293931379,0.3988,2642.8,2642.7,1.73837]
[1729293931579,1.48673266,2642.9,2642.7,3.09837]
[1729293931789,2.25887266,2643.0,2642.9,0.37835]
[1729293932089,0.96139989,2643.0,2642.9,1.73835]
[1729293934084,4.30660686,2643.0,2642.8,1.36]
[1729293934384,2.55281686,2642.9,2642.8,1.73836]
[1729293935279,0.37839,2642.7,2642.6,0.37838]
[1729293935480,0.37839,2642.7,2642.6,1.73838]
[1729293935681,1.86607042,2642.7,2642.6,1.73838]
[1729293935983,3.29783031,2642.7,2642.6,1.73838]
[1729293936180,1.81014989,2642.7,2642.6,1.73838]
[1729293938081,3.29786598,2642.7,2642.6,1.73838]
[1729293938385,3.29784242,2642.7,2642.6,1.73838]
[1729293938783,1.81014989,2642.7,2642.6,1.73838]
[1729293939986,1.81014989,2642.7,2642.6,0.37838]
[1729293940189,1.81014989,2642.7,2642.6,1.73838]
[1729293940490,1.81017592,2642.7,2642.6,1.73838]
[1729293944494,3.29781141,2642.7,2642.6,1.73838]
[1729293945084,1.81017456,2642.7,2642.6,1.73838]
[1729293949895,1.81017868,2642.7,2642.6,1.73838]
[1729293950695,3.29763116,2642.7,2642.6,1.73838]
[1729293950998,1.81017868,2642.7,2642.6,1.73838]
[1729293954493,1.81017827,2642.7,2642.6,1.73838]
[1729293959509,1.81017633,2642.7,2642.6,1.73838]
[1729293960004,3.79365337,2642.7,2642.6,1.73838]
[1729293960412,1.81017633,2642.7,2642.6,1.73838]
[1729293960704,3.79365337,2642.7,2642.6,1.73838]
[1729293962705,3.79365669,2642.7,2642.6,1.73838]
[1729293965004,1.81017965,2642.7,2642.6,1.73838]
[1729293965399,3.79365669,2642.7,2642.6,1.73838]
[1729293966011,3.79365669,2642.7,2642.3,3.60996759]
[1729293966012,0.946,2642.6,2642.3,0.98802431]
[1729293966212,0.37843,2642.3,2642.2,1.36645431]
[1729293966402,0.56771965,2642.3,2642.2,1.73843]
[1729293966602,3.74677406,2642.3,2642.2,1.73843]
[1729293967404,3.74679776,2642.3,2642.2,1.73843]
[1729293967612,1.76234335,2642.3,2642.2,1.73843]
[1729293968008,1.38391335,2642.3,2642.2,1.73843]
[1729293968220,1.57303,2642.3,2642.2,1.73843]
[1729293968522,1.76234335,2642.3,2642.2,1.73843]
[1729293968905,3.06107309,2642.3,2642.2,1.73843]
[1729293970216,3.2503821,2642.3,2642.2,1.73843]
[1729293970416,3.25038446,2642.3,2642.2,1.73843]
[1729293970809,3.06107309,2642.3,2642.2,1.73843]
[1729293971215,3.25038095,2642.3,2642.2,1.73843]
[1729293971514,3.06107309,2642.3,2642.2,1.73843]
[1729293972106,3.25038164,2642.3,2642.2,1.73843]
[1729293973421,3.25038384,2642.3,2642.2,1.73843]
[1729293976816,3.25038936,2642.3,2642.2,1.73843]
[1729293977519,2.87195936,2642.3,2642.2,1.73843]
[1729293977708,1.67735936,2642.3,2642.2,1.73843]
[1729293977912,0.99178449,2642.3,2642.2,2.55365]
[1729293978219,0.99178449,2642.3,2642.2,3.54167431]
[1729293978718,0.99178449,2642.4,2642.2,3.16322431]
[1729293978910,1.48804309,2642.4,2642.3,1.36]
[1729293979109,1.48804309,2642.4,2642.3,1.73843]
[1729293985731,1.86646309,2642.4,2642.3,1.73843]
[1729293986728,2.05576346,2642.4,2642.3,1.73843]
[1729293987230,3.31776729,2642.4,2642.3,1.73843]
[1729293987531,3.31776439,2642.4,2642.3,1.73843]
[1729293991234,3.12846309,2642.4,2642.3,1.73843]
[1729293991423,3.31776431,2642.4,2642.3,1.73843]
[1729293991826,1.82972122,2642.4,2642.3,1.73843]
[1729293994024,3.81417563,2642.4,2642.3,1.36]
[1729293994222,3.81417563,2642.4,2642.3,1.73843]
[1729293997821,7.02197563,2642.4,2642.3,1.73843]
[1729293998628,8.00355563,2642.4,2642.1,0.98802431]
[1729293998830,1.867045,2642.2,2642.1,1.73846]
[1729293999033,0.56775122,2642.2,2642.1,1.73846]
[1729293999532,2.05634119,2642.2,2642.1,1.73846]
[1729293999839,0.56775122,2642.2,2642.1,1.73846]
[1729294000434,1.86704376,2642.2,2642.1,1.73846]
[1729294000624,2.05634498,2642.2,2642.1,1.73846]
[1729294001232,0.56775122,2642.2,2642.1,1.73846]
[1729294001435,1.86705295,2642.2,2642.1,1.73846]
[1729294001636,2.05635417,2642.2,2642.1,1.73846]
[1729294002133,0.37846,2642.1,2642.0,1.36649431]
[1729294002333,1.81826122,2642.1,2642.0,1.73847]
[1729294002645,0.37849,2642.0,2641.9,1.73849]
[1729294002841,0.56779122,2642.0,2641.9,1.73849]
[1729294003025,1.92779122,2642.0,2641.9,0.37849]
[1729294003336,0.37849,2641.9,2641.8,1.36]
[1729294003636,0.37852,2641.7,2641.6,1.36654431]
[1729294003937,3.22704145,2641.7,2641.6,1.73852]
[1729294004236,3.41639311,2641.7,2641.6,1.73852]
[1729294004431,2.70914145,2641.7,2641.6,1.73852]
[1729294006636,1.22062,2641.7,2641.6,1.73852]
[1729294006836,2.21225846,2641.7,2641.6,1.73852]
[1729294007225,1.22062,2641.7,2641.6,1.73852]
[1729294007430,2.2122585,2641.7,2641.6,1.73852]
[1729294014442,1.22062,2641.7,2641.6,1.73852]
[1729294015047,2.2122585,2641.7,2641.6,1.73852]
[1729294015350,1.22062,2641.7,2641.6,1.73852]
[1729294017050,1.22062,2641.7,2641.6,1.36]
[1729294017051,2.2122585,2641.7,2641.6,1.36]
[1729294017550,1.22062,2641.7,2641.6,1.36]
[1729294017948,0.37853,2641.6,2641.5,1.36]
[1729294018152,0.37853,2641.6,2641.2,0.4022]
[1729294018153,0.37858,2641.4,2641.3,1.73856]
[1729294018538,0.37858,2641.4,2641.3,1.36]
[1729294018844,0.37858,2641.3,2641.2,0.37858]
[1729294019044,1.19768,2641.3,2641.2,1.73858]
[1729294020459,0.8191,2641.3,2641.2,1.73858]
[1729294022554,0.3974,2641.3,2641.2,1.73858]
[1729294023856,4.0014,2641.5,2641.2,1.36]
[1729294024055,0.9916385,2641.6,2641.5,0.37855]
[1729294024056,0.4038,2641.6,2641.5,0.37855]
[1729294024246,0.4038,2641.6,2641.5,1.73855]
[1729294027157,0.78233,2641.6,2641.5,1.73855]
[1729294034759,0.4038,2641.6,2641.5,1.73855]
[1729294035064,3.58632,2641.8,2641.7,0.37852]
[1729294035556,3.58632,2641.8,2641.7,1.73852]
[1729294036463,1.3701585,2641.8,2641.7,1.73852]
[1729294036666,0.37852,2641.8,2641.7,1.73852]
[1729294036959,1.3701585,2641.8,2641.7,1.73852]
[1729294037664,0.9916385,2641.8,2641.7,1.73852]
[1729294037862,7.1626385,2641.9,2641.7,1.36]
[1729294038057,7.1626385,2641.9,2641.8,0.37851]
[1729294038563,7.65952145,2641.9,2641.8,0.37851]
[1729294038758,6.171,2641.9,2641.8,0.37851]
[1729294039063,2.9632,2641.9,2641.8,0.37851]
[1729294039262,3.95402493,2641.9,2641.8,0.37851]
[1729294039465,2.9632,2641.9,2641.8,0.37851]
[1729294039667,2.9632,2641.9,2641.8,1.73851]
[1729294040365,4.45172145,2641.9,2641.8,1.73851]
[1729294041062,4.45172145,2641.9,2641.8,0.37851]
[1729294041357,4.64106911,2641.9,2641.8,0.37851]
[1729294041564,3.15254766,2641.9,2641.8,0.37851]
[1729294041968,3.15254929,2641.9,2641.8,0.37851]
[1729294043658,5.1370037,2641.9,2641.8,0.37851]
[1729294043967,3.15254929,2641.9,2641.8,0.37851]
[1729294044468,5.1370037,2641.9,2641.8,0.37851]
[1729294047368,3.15254929,2641.9,2641.8,0.37851]
[1729294047762,5.13780101,2641.9,2641.8,0.37851]
[1729294047963,3.15254929,2641.9,2641.8,0.37851]
[1729294050668,4.91761662,2641.9,2641.8,0.37851]
[1729294050976,3.15254929,2641.9,2641.8,0.37851]
[1729294051165,4.91762006,2641.9,2641.8,0.37851]
[1729294051367,3.15254929,2641.9,2641.8,0.37851]
[1729294053978,7.39863485,2641.9,2641.8,0.37851]
[1729294054276,3.15254929,2641.9,2641.8,0.37851]
[1729294054483,7.39857661,2641.9,2641.8,0.37851]
[1729294054684,3.15254929,2641.9,2641.8,0.37851]
[1729294055765,7.39857547,2641.9,2641.8,0.37851]
[1729294055972,7.39861691,2641.9,2641.8,0.37851]
[1729294056377,3.15254929,2641.9,2641.8,0.37851]
[1729294057169,4.9175188,2641.9,2641.8,0.37851]
[1729294057580,3.15254929,2641.9,2641.8,0.37851]
[1729294058077,7.39854797,2641.9,2641.8,0.37851]
[1729294058577,3.15254929,2641.9,2641.8,0.37851]
[1729294060072,4.91751417,2641.9,2641.8,0.37851]
[1729294060378,3.15254929,2641.9,2641.8,0.37851]
[1729294060673,3.15254929,2641.9,2641.6,1.36]
[1729294060674,0.37853,2641.7,2641.6,0.37851]
[1729294060876,0.37853,2641.7,2641.5,0.37855]
[1729294060877,0.37853,2641.6,2641.5,0.37855]
[1729294061069,0.37853,2641.6,2641.4,0.98802431]
[1729294061070,0.37855,2641.5,2641.4,0.37855]
[1729294061271,2.77340841,2641.5,2641.4,0.37856]
[1729294061670,4.38043309,2641.5,2641.3,0.98802431]
[1729294061878,3.03864594,2641.4,2641.2,0.98802431]
[1729294062076,3.22786753,2641.3,2641.2,1.36660431]
[1729294062275,3.62266753,2641.3,2641.2,1.36660431]
[1729294062470,3.81204856,2641.3,2641.2,0.37858]
[1729294062881,3.81204856,2641.3,2641.2,1.73858]
[1729294065569,3.81204953,2641.3,2641.2,1.73858]
[1729294067872,3.81204953,2641.3,2641.2,0.37858]
[1729294068077,0.37861,2641.1,2641.0,0.37862]
[1729294068278,3.22736648,2641.1,2641.0,0.37862]
[1729294068483,3.41648382,2641.1,2641.0,0.37862]
[1729294068686,4.24488382,2641.1,2641.0,0.37862]
[1729294069585,4.05549119,2641.1,2641.0,0.37862]
[1729294071389,2.56701,2641.1,2641.0,0.37862]
[1729294071584,3.55881644,2641.1,2641.0,0.37862]
[1729294071991,3.55882098,2641.1,2641.0,0.37862]
[1729294072179,3.55882015,2641.1,2641.0,0.37862]
[1729294072383,2.56701,2641.1,2641.0,0.37862]
[1729294072683,3.55881071,2641.1,2641.0,0.37862]
[1729294078995,1.20701,2641.1,2641.0,1.73862]
[1729294086400,1.20701,2641.1,2641.0,0.37862]
[1729294088215,2.56701,2641.1,2641.0,0.37862]
[1729294088706,2.56701,2641.1,2641.0,1.73862]
[1729294090298,2.56701,2641.1,2641.0,0.37862]
[1729294097615,3.55881071,2641.1,2641.0,0.37862]
[1729294099008,2.56701,2641.1,2641.0,0.37862]
[1729294099209,3.55881071,2641.1,2641.0,0.37862]
[1729294103519,2.56701,2641.1,2641.0,0.37862]
[1729294104521,4.05549119,2641.1,2641.0,0.37862]
[1729294105520,4.24488445,2641.1,2641.0,1.36664431]
[1729294106507,2.75640326,2641.1,2641.0,1.36664431]
[1729294107020,2.75640328,2641.1,2641.0,1.36664431]
[1729294107515,2.75640328,2641.1,2641.0,2.37218038]
[1729294107708,2.56701,2641.1,2641.0,1.36664431]
[1729294107911,2.75640354,2641.1,2641.0,2.37217561]
[1729294109512,4.74197822,2641.1,2641.0,1.36664431]
[1729294110424,4.36336822,2641.1,2641.0,2.3724926]
[1729294110914,4.74197822,2641.1,2641.0,2.3724926]
[1729294111715,4.74197675,2641.1,2641.0,2.37275043]
[1729294112920,4.74197675,2641.1,2641.0,1.38472612]
[1729294113320,4.74197675,2641.1,2641.0,2.37531654]
[1729294113513,4.74197675,2641.1,2641.0,2.37549354]
[1729294113708,4.74197675,2641.1,2641.0,1.38472612]
[1729294114314,4.74197675,2641.1,2641.0,2.37547829]
[1729294114517,4.74197675,2641.1,2641.0,1.38472612]
[1729294115116,4.74197675,2641.1,2641.0,2.37550864]
[1729294115316,4.74197675,2641.1,2641.0,2.86791371]
[1729294116224,4.74197675,2641.1,2641.0,1.38472612]
[1729294116418,4.74197645,2641.1,2641.0,1.38511332]
[1729294117718,4.74197645,2641.1,2641.0,2.86830091]
[1729294118120,4.74197645,2641.1,2641.0,1.38511332]
[1729294119319,3.38197645,2641.1,2641.0,1.38511332]
[1729294119520,1.98557468,2641.2,2641.0,6.53151332]
[1729294119720,0.99387682,2641.2,2641.1,13.84445577]
[1729294119916,0.99387682,2641.3,2641.2,0.37859]
[1729294120122,0.99387682,2641.3,2641.2,9.32226645]
[1729294120530,0.99387682,2641.4,2641.3,0.37858]
[1729294120832,0.99387682,2641.4,2641.3,6.53032056]
[1729294121032,0.99387682,2641.4,2641.3,6.92402056]
[1729294121218,0.99387682,2641.4,2641.3,6.9233642]
[1729294121828,0.99387682,2641.4,2641.3,8.40761776]
[1729294122430,2.35387682,2641.5,2641.3,8.02856638]
[1729294122732,2.35387682,2641.5,2641.4,1.3840442]
[1729294123226,2.35387682,2641.5,2641.4,5.1696442]
[1729294123733,2.35387682,2641.5,2641.4,5.15314236]
[1729294124125,2.35387682,2641.5,2641.4,1.36754236]
[1729294124320,2.35387682,2641.5,2641.4,5.15314236]
[1729294125230,2.35387682,2641.5,2641.4,1.36754236]
[1729294125428,2.35387682,2641.5,2641.4,5.15314236]
[1729294126632,2.35387682,2641.5,2641.4,4.16416]
[1729294127044,2.35387682,2641.5,2641.4,1.36754236]
[1729294127221,2.35387682,2641.5,2641.4,5.15314236]
[1729294127426,2.35387682,2641.5,2641.4,4.16416]
[1729294127826,2.73242682,2641.5,2641.4,4.16416]
[1729294128035,2.35387682,2641.5,2641.4,4.16416]
[1729294128630,2.35387682,2641.5,2641.4,0.37856]
[1729294129630,2.73242682,2641.5,2641.4,0.37856]
[1729294136538,0.99387682,2641.5,2641.4,0.37856]
[1729294136730,0.99387682,2641.5,2641.4,1.73856]
[1729294136943,3.66283806,2641.6,2641.4,4.5678]
[1729294136944,1.80587682,2641.6,2641.4,4.5678]
[1729294137136,0.812,2641.6,2641.5,2.72753236]
[1729294140545,0.4203,2641.6,2641.5,2.72753236]
[1729294145747,0.4006,2641.8,2641.5,6.13458236]
[1729294145946,0.4014,2642.0,2641.9,0.37849]
[1729294146139,0.4014,2642.0,2641.9,2.51749]
[1729294148747,1.7614,2642.0,2641.9,1.15749]
[1729294150849,1.7614,2642.0,2641.9,2.51749]
[1729294153738,0.4014,2642.0,2641.9,2.51749]
[1729294156534,1.7614,2642.0,2641.9,0.37849]
[1729294156738,1.7614,2642.0,2641.9,1.15749]
[1729294158246,1.7614,2642.0,2641.9,2.51749]
[1729294166445,0.4014,2642.0,2641.9,2.51749]
[1729294180358,1.39527682,2642.0,2641.9,2.51749]
[1729294180564,1.39527682,2642.0,2641.9,3.50481804]
[1729294181365,0.99387682,2642.2,2641.9,8.71584033]
[1729294181567,0.4278,2642.3,2642.2,0.37845]
[1729294181757,0.4278,2642.3,2642.2,2.93400086]
[1729294181959,0.4278,2642.3,2642.2,4.41681392]
[1729294182360,0.4278,2642.3,2642.2,2.93400086]
[1729294182559,0.4278,2642.3,2642.2,4.41681392]
[1729294183360,0.4278,2642.3,2642.2,2.93400086]
[1729294183559,0.4278,2642.3,2642.2,4.41681392]
[1729294186062,0.4278,2642.3,2642.2,4.41682397]
[1729294186563,0.4278,2642.3,2642.2,2.93401091]
[1729294187768,0.4278,2642.3,2642.2,4.41682397]
[1729294188272,0.4108,2642.5,2642.4,0.37842]
[1729294188273,1.40467682,2642.5,2642.4,0.37842]
[1729294188466,2.76467682,2642.5,2642.4,1.3669109]
[1729294188659,2.76467682,2642.5,2642.4,2.7269109]
[1729294188862,1.7708,2642.5,2642.4,2.7269109]
[1729294192468,2.14921,2642.5,2642.4,1.73842]
[1729294192662,1.7708,2642.5,2642.4,0.37842]
[1729294192864,3.14308682,2642.5,2642.4,0.37842]
[1729294193064,2.14921,2642.5,2642.4,0.37842]
[1729294193265,3.14308682,2642.5,2642.4,0.37842]
[1729294193463,0.37842,2642.4,2642.3,1.3669209]
[1729294193760,3.22925806,2642.4,2642.3,0.37843]
[1729294193961,1.73842,2642.4,2642.3,0.37843]
[1729294197170,2.73004876,2642.4,2642.3,0.37843]
[1729294197372,1.73842,2642.4,2642.3,0.37843]
[1729294197779,2.73004572,2642.4,2642.3,0.37843]
[1729294197979,1.73842,2642.4,2642.3,0.37843]
[1729294198374,2.73004277,2642.4,2642.3,0.37843]
[1729294198573,2.73003613,2642.4,2642.3,0.37843]
[1729294200781,3.12883613,2642.4,2642.3,0.37843]
[1729294203977,0.37845,2642.2,2642.1,1.3669409]
[1729294204277,2.85083806,2642.2,2642.1,0.37845]
[1729294204888,3.67273806,2642.2,2642.1,0.37845]
[1729294206177,2.31273806,2642.2,2642.1,1.73845]
[1729294206476,0.8219,2642.2,2642.1,2.7269409]
[1729294206775,0.8219,2642.2,2642.1,2.74219085]
[1729294208086,0.8219,2642.2,2642.1,4.2248617]
[1729294209286,0.419,2642.2,2642.1,4.2248617]
[1729294210880,0.419,2642.2,2642.1,5.0028617]
[1729294212677,0.419,2642.2,2642.1,5.0029348]
[1729294217493,0.419,2642.2,2642.1,5.00318428]
[1729294219287,0.419,2642.2,2642.1,8.21098428]
[1729294221479,0.419,2642.2,2642.1,6.72824793]
[1729294222184,0.419,2642.2,2642.1,6.72842488]
[1729294222992,0.419,2642.2,2642.1,8.21136146]
[1729294223183,0.419,2642.2,2642.1,6.72842488]
[1729294223378,0.419,2642.2,2642.1,3.52062488]
[1729294223583,0.419,2642.2,2642.1,6.72842488]
[1729294224089,0.419,2642.2,2642.1,8.2115566]
[1729294224288,0.419,2642.2,2642.1,6.72842488]
[1729294225189,0.419,2642.2,2642.1,3.52062488]
[1729294225492,0.419,2642.2,2642.1,6.72842488]
[1729294226094,0.419,2642.2,2642.1,3.52062488]
[1729294226291,0.419,2642.2,2642.1,6.72842488]
[1729294227093,0.419,2642.2,2642.1,3.52062488]
[1729294227290,0.419,2642.2,2642.1,6.72842488]
[1729294227493,0.419,2642.2,2642.1,8.70800015]
[1729294227994,1.78655834,2642.4,2642.3,0.37843]
[1729294228190,1.78655834,2642.4,2642.2,1.8620913]
[1729294228191,1.36,2642.3,2642.2,1.8620913]
[1729294228384,1.36,2642.3,2642.2,2.8669336]
[1729294228385,1.86927806,2642.3,2642.2,2.8669336]
[1729294228585,1.37107264,2642.3,2642.2,2.8669336]
[1729294228786,0.37844,2642.3,2642.2,2.8669336]
[1729294229095,1.17333,2642.4,2642.3,0.37843]
[1729294229392,1.36263144,2642.4,2642.3,1.36758821]
[1729294231697,1.36263191,2642.4,2642.3,1.36758821]
[1729294234890,1.36263191,2642.4,2642.3,0.98915821]
[1729294235194,4.70820659,2642.4,2642.3,0.37843]
[1729294235392,4.70820659,2642.4,2642.3,1.73843]
[1729294236196,2.72263191,2642.4,2642.3,1.36758821]
[1729294236393,8.49300749,2642.4,2642.3,0.37843]
[1729294241189,8.493011,2642.4,2642.3,0.37843]
[1729294242296,8.888911,2642.4,2642.3,0.37843]
[1729294246018,8.88891013,2642.4,2642.3,0.37843]
[1729294246205,5.10411013,2642.4,2642.3,0.37843]
[1729294249121,0.37843,2642.3,2642.2,0.37845]
[1729294249410,3.7241935,2642.3,2642.2,0.37845]
[1729294249619,1.92773545,2642.3,2642.2,0.37845]
[1729294249912,0.37846,2642.1,2642.0,0.98915821]
[1729294250115,0.37849,2642.0,2641.9,0.37848]
[1729294250307,8.35450678,2642.0,2641.7,2.34915821]
[1729294250502,1.36,2641.8,2641.6,0.98915821]
[1729294250705,0.37853,2641.6,2641.5,1.36769821]
[1729294250913,3.22787635,2641.6,2641.5,1.36769821]
[1729294251107,3.22787635,2641.6,2641.5,2.72769821]
[1729294251108,3.56006,2641.6,2641.5,2.72769821]
[1729294251316,3.18153,2641.6,2641.5,2.72769821]
[1729294252320,3.18153,2641.6,2641.5,1.73854]
[1729294254218,2.56763,2641.6,2641.5,1.73854]
[1729294254417,2.1891,2641.6,2641.5,1.73854]
[1729294255712,2.56763,2641.6,2641.5,1.73854]
[1729294255921,2.56763,2641.6,2641.5,0.37854]
[1729294256219,2.56763,2641.6,2641.5,1.73854]
[1729294257218,2.56763,2641.6,2641.1,0.4271]
[1729294257219,6.96713,2641.6,2641.1,1.41625821]
[1729294257522,0.37858,2641.3,2641.2,1.73859]
[1729294257715,1.73858,2641.3,2641.2,0.37859]
[1729294257914,1.73858,2641.3,2641.0,1.7846]
[1729294257915,0.37859,2641.2,2641.1,0.37859]
[1729294258116,2.58089,2641.2,2641.1,0.37859]
[1729294258319,2.5809,2641.2,2641.1,0.37861]
[1729294258523,2.58089,2641.2,2641.1,1.73861]
[1729294258915,2.2023,2641.2,2641.1,1.73861]
[1729294259116,2.58089,2641.2,2641.1,1.73861]
[1729294260020,0.8423,2641.2,2641.1,1.73861]
[1729294260317,0.99243,2641.5,2641.1,2.72]
[1729294260516,3.13353,2641.7,2641.4,1.36]
[1729294260723,3.51206,2641.7,2641.6,0.37853]
[1729294265423,2.51963,2641.7,2641.6,0.37853]
[1729294268624,0.37853,2641.6,2641.5,1.73854]
[1729294270129,1.73853,2641.6,2641.5,1.73854]
[1729294277422,0.37853,2641.6,2641.5,1.73854]
[1729294279334,2.51963,2641.7,2641.6,0.37853]
[1729294279925,0.7811,2641.7,2641.6,0.37853]
[1729294280127,3.2078,2641.8,2641.7,0.37852]
[1729294280326,1.78123,2641.9,2641.8,0.37851]
[1729294280327,0.4103,2641.9,2641.8,0.37851]
[1729294280528,0.4103,2641.9,2641.8,1.73851]
[1729294280729,0.8166,2642.0,2641.9,0.37849]
[1729294280931,0.8166,2642.0,2641.9,1.73849]
[1729294281125,0.3888,2642.0,2641.9,1.73849]
[1729294282034,0.76728,2642.0,2641.9,1.73849]
[1729294282431,0.3888,2642.0,2641.9,1.73849]
[1729294283232,0.76728,2642.0,2641.9,1.73849]
[1729294283932,0.3888,2642.0,2641.9,1.73849]
[1729294284132,0.76728,2642.0,2641.9,1.73849]
[1729294284429,0.37845,2642.3,2642.2,0.37843]
[1729294284623,1.20295,2642.3,2642.2,1.73843]
[1729294288331,0.8245,2642.3,2642.2,1.73843]
[1729294290134,1.20293,2642.3,2642.2,1.73843]
[1729294294638,1.20293,2642.3,2641.9,3.58629]
[1729294294639,4.6093,2642.3,2641.9,3.2078]
[1729294294836,4.6093,2642.3,2641.7,0.98915821]
[1729294294837,0.37851,2641.9,2641.8,0.3785]
[1729294295036,2.73092,2642.0,2641.9,0.37849]
[1729294295238,2.73092,2642.0,2641.9,1.73849]
[1729294295239,3.15182,2642.0,2641.9,1.73849]
[1729294295431,3.15182,2642.0,2641.9,1.36]
[1729294295635,3.15182,2642.0,2641.9,1.73849]
[1729294296334,3.15182,2642.0,2641.9,1.36]
[1729294296549,3.15182,2642.0,2641.9,1.73849]
[1729294296848,3.15182,2642.0,2641.9,1.36]
[1729294298550,0.37855,2641.6,2641.3,0.98915821]
[1729294298846,0.37855,2641.6,2641.2,2.8206013]
[1729294298847,0.8485,2641.5,2641.4,0.37856]
[1729294299537,0.8485,2641.5,2641.3,1.15656]
[1729294299744,0.37857,2641.4,2641.3,0.37856]
[1729294300543,2.3503315,2641.4,2641.2,1.36]
[1729294300738,1.73858,2641.3,2641.2,1.36]
[1729294300937,1.73858,2641.3,2641.2,1.73859]
[1729294301154,0.37858,2641.3,2641.2,1.73859]
[1729294301861,0.37858,2641.3,2641.2,1.36]
[1729294302143,0.37858,2641.3,2641.2,1.73859]
[1729294302346,0.37858,2641.3,2641.2,1.36]
[1729294302752,0.37859,2641.2,2641.1,1.7386]
[1729294303849,1.73859,2641.3,2641.2,0.37859]
[1729294304146,1.73858,2641.3,2641.2,1.36]
[1729294305049,1.73858,2641.3,2641.2,1.73859]
[1729294307139,1.73858,2641.3,2641.2,1.36]
[1729294307651,1.73858,2641.3,2641.2,1.73859]
[1729294307845,1.73858,2641.3,2641.2,1.36]
[1729294308645,1.73858,2641.3,2641.2,1.73859]
[1729294311049,1.73858,2641.3,2641.2,1.36]
[1729294311344,1.73858,2641.3,2641.2,1.73859]
[1729294323055,1.73858,2641.3,2641.2,1.36]
[1729294323352,0.37861,2641.2,2641.1,0.37859]
[1729294323556,0.37861,2641.2,2641.1,1.73859]
[1729294323557,2.13661,2641.2,2641.1,1.73859]
[1729294325062,2.13659,2641.2,2641.1,1.73859]
[1729294326265,0.77659,2641.2,2641.1,1.73859]
[1729294327556,2.13659,2641.2,2641.1,1.73859]
[1729294328266,0.77659,2641.2,2641.1,1.73859]
[1729294328963,0.4151,2641.4,2641.1,1.36]
[1729294329163,0.79367,2641.4,2641.3,1.73858]
[1729294329568,0.4151,2641.4,2641.3,1.73858]
[1729294330272,0.79366,2641.4,2641.3,1.73858]
[1729294330859,0.4151,2641.4,2641.3,1.73858]
[1729294331365,1.23256,2641.5,2641.4,0.37856]
[1729294331366,1.23255,2641.5,2641.4,0.37856]
[1729294331569,1.23255,2641.5,2641.4,1.73856]
[1729294332462,2.59255,2641.5,2641.4,0.37856]
[1729294333462,0.37856,2641.4,2641.3,0.37857]
[1729294333668,0.37856,2641.4,2641.2,0.37858]
[1729294333669,0.37859,2641.3,2641.2,0.37858]
[1729294333867,0.37859,2641.3,2641.2,1.73858]
[1729294338373,1.36955641,2641.3,2641.2,1.73858]
[1729294339274,1.36953641,2641.4,2641.3,0.37858]
[1729294339471,1.36991831,2641.4,2641.3,1.73858]
[1729294339674,1.36994268,2641.4,2641.3,1.73858]
[1729294339871,0.37857,2641.4,2641.3,1.73858]
[1729294340273,2.05439676,2641.4,2641.3,1.73858]
[1729294340467,1.86501962,2641.4,2641.3,1.73858]
[1729294340876,2.0543963,2641.4,2641.3,1.73858]
[1729294341870,1.67582163,2641.4,2641.3,1.73858]
[1729294342075,1.67582234,2641.4,2641.3,1.73858]
[1729294342671,1.67582395,2641.4,2641.3,1.73858]
[1729294343270,0.18937433,2641.4,2641.3,1.73858]
[1729294344274,2.17130715,2641.4,2641.3,1.73858]
[1729294344473,2.54986715,2641.4,2641.3,1.73858]
[1729294347684,2.5498676,2641.4,2641.3,1.73858]
[1729294348376,2.36049282,2641.4,2641.3,1.73858]
[1729294348582,2.54986598,2641.4,2641.3,1.73858]
[1729294349471,2.17130598,2641.4,2641.3,1.73858]
[1729294349781,1.98193282,2641.4,2641.3,1.73858]
[1729294350079,0.99311516,2641.4,2641.3,2.74396756]
[1729294350281,1.48969912,2641.6,2641.3,2.36538756]
[1729294350587,0.99290321,2641.5,2641.4,2.86754979]
[1729294351077,0.99290321,2641.5,2641.4,4.22754979]
[1729294351476,0.99290321,2641.5,2641.4,2.74357002]
[1729294351981,0.99290321,2641.5,2641.4,3.7327443]
[1729294352285,0.37856,2641.4,2641.3,1.36774428]
[1729294352483,3.76523282,2641.4,2641.2,0.37858]
[1729294352684,3.76523282,2641.4,2641.1,2.34917428]
[1729294352685,2.37186516,2641.3,2641.1,2.34917428]
[1729294352881,2.37186516,2641.3,2641.1,1.73859]
[1729294352882,2.05714373,2641.2,2641.1,1.73859]
[1729294353183,1.67861031,2641.2,2641.1,1.73859]
[1729294353578,0.18938342,2641.2,2641.1,1.73859]